Cogmind - Beta 14 @@@ ROGUE MODE // 2024.08.28 @ 10:56:52 Player: Voidriven Result: Self-destructed Performance ------------- Evolutions (1) 500 Regions Visited (2) 400 Robots Destroyed (16) 80 Value Destroyed (449) 449 Prototype IDs (1) 20 Alien Tech Used (0) 0 Bonus (0) 0 TOTAL SCORE: 1449 Bonus ------- None Cogmind --------- Core Integrity 221/400 Matter 230/300 Energy 280/280 System Corruption 0% Temperature Cool (1) Movement Treading (160) Location -9/Materials Parts ------- > --- POWER (1) -------- Heavy Ion Engine > --- PROPULSION (3) --- Improved Treads > --- UTILITY (3) ------ Sensor Array Signal Interpreter Power Shielding > --- WEAPON (2) ------- Heavy Assault Rifle > --- INVENTORY (5) ---- Ion Engine Aluminum Leg Small Storage Unit Seismic Detector Medium Laser Peak State ------------ > --- POWER ------------ Heavy Ion Engine > --- PROPULSION ------- Improved Treads Improved Treads > --- UTILITY ---------- Visual Processing Unit Power Shielding Light Armor Plating > --- WEAPON ----------- Heavy Assault Rifle Heavy Assault Rifle > --- INVENTORY -------- Ion Engine Aluminum Leg Small Storage Unit Seismic Detector Medium Laser [Rating: 15] Favorites ----------- Power Ion Engine Engine Ion Engine Propulsion Aluminum Leg Treads Improved Treads Leg Aluminum Leg Utility Power Shielding Device Shield Generator Storage Small Storage Unit Processor Visual Processing Unit Protection Power Shielding Weapon EM Pulse Gun Energy Gun EM Pulse Gun Ballistic Gun Heavy Assault Rifle Special Melee Weapon Datajack Build | -11 -10 -9 ------- Run | Yrd Mat Mat Slots Evolved 2 | . . 2 Power . | . . . Propulsion 1 | . . 1 Utility 1 | . . 1 Weapon . | . . . Parts Attached 32 | 6 10 16 Power 3 | 1 1 1 Engine 3 | 1 1 1 Core . | . . . Reactor . | . . . Propulsion 11 | 2 4 5 Treads 5 | 2 . 3 Leg 6 | . 4 2 Wheel . | . . . Hover . | . . . Flight . | . . . Utility 9 | 1 2 6 Device 4 | . 1 3 Storage 1 | 1 . . Processor 2 | . . 2 Hackware . | . . . Protection 2 | . 1 1 Artifact . | . . . Weapon 9 | 2 3 4 Energy Gun 4 | 2 1 1 Energy Cannon . | . . . Ballistic Gun 3 | . . 3 Ballistic Cannon . | . . . Launcher . | . . . Special Weapon . | . . . Impact Weapon . | . . . Slashing Weapon . | . . . Piercing Weapon . | . . . Special Melee Weapon 2 | . 2 . Unidentified Prototypes 1 | . . 1 Parts Lost 9 | . . 9 Power . | . . . Propulsion 4 | . . 4 Utility 2 | . . 2 Weapon 3 | . . 3 Highest Loss Streak 3 | . . 3 To Critical Strikes . | . . . Average Slot Usage (%) 85 | . 99 75 Engine 12 | . 14 11 Treads 7 | . 3 11 Leg 16 | . 23 10 Device 4 | . 8 2 Storage 7 | . 14 2 Processor 2 | . . 5 Protection 10 | . 5 15 Energy Gun 8 | . 15 2 Ballistic Gun 7 | . . 13 Special Melee Weapon 6 | . 12 2 Peak Build Rating 15 | 6 8 15 Average Rating 8 | 4 7 11 On Entrance 4 | . 6 7 Naked Turns . | . . . Heaviest Build 19 | 14 16 19 Greatest Support 46 | 40 40 46 Greatest Overweight (x) 5 | . 1 5 Average Overweight (x) . | . . . Largest Inventory Capacity 8 | 8 8 8 Average Capacity 6 | 6 8 5 Most Carried 8 | 3 8 5 Average Carried 4 | 1 4 4 Final Capacity 8 | 8 8 5 Final Carried 5 | 3 4 5 Class Distribution -------------------- 100% | Mutant Dominant Class ---------------- Mutant | -10/Materials Mutant | -9/Materials Resources | -11 -10 -9 ----------- Run | Yrd Mat Mat Matter Collected 608 | 238 122 248 Remotely . | . . . Salvage Created 616 | 24 181 411 Parts 34 | 5 10 19 Haulers Intercepted . | . . . Recyclers Shooed . | . . . Parts Field Recycled . | . . . Retrieved Matter . | . . . Parts Self-Destructed . | . . . Prevented . | . . . Kills | -11 -10 -9 ------- Run | Yrd Mat Mat Combat Hostiles Destroyed 12 | . 3 9 Guns 11 | . 3 8 AOE 1 | . . 1 Classes Destroyed 6 | 1 2 3 Tunneler 1 | 1 . . Recycler 1 | . . 1 Watcher 2 | . 1 1 Swarmer 2 | . . 2 Grunt 9 | . 3 6 Sentry 1 | . . 1 Best Kill Streak 3 | 1 2 3 Combat Bots Only 3 | . 2 3 Max Kills in Single Turn 1 | 1 1 1 Gunslinging . | . . . Exploded 1 | . . 1 Melee . | . . . Uniques/NPCs Destroyed . | . . . Combat | -11 -10 -9 -------- Run | Yrd Mat Mat Hostile Shots Fired 200 | . 23 177 Missed 62 | . 8 54 Damage Taken 1354 | . 231 1123 Core 230 | . 51 179 Absorbed by Shields 164 | . 41 123 Redirected to Shielding 25 | . 3 22 Core Remaining (%) 89 | 100 79 . Volleys Fired 73 | 2 25 46 Largest 2 | 2 2 2 Hottest 80 | 80 80 73 Shots Fired 107 | 4 26 77 Gun 107 | 4 26 77 Cannon . | . . . Launcher . | . . . Special . | . . . Kinetic 66 | . . 66 Thermal 4 | . . 4 Explosive . | . . . Electromagnetic 37 | 4 26 7 Robot Hit Streak 11 | 1 5 11 Robot Miss Streak 2 | 1 2 2 Penetration Max . | . . . Secondary Targets 1 | . . 1 Max Gunslinging Chain 1 | . . 1 Shots Hit Robots 87 | 2 30 55 Core Hits 25 | 1 7 17 Critical Kills . | . . . Critical Parts Destroyed . | . . . Critical Strikes 2 | 1 . 1 Burn 1 | . . 1 Corrupt 1 | 1 . . Melee Attacks 23 | . 17 6 Impact . | . . . Slashing . | . . . Piercing . | . . . Sneak Attacks 10 | . 8 2 Combat Hostiles . | . . . Follow-up Attacks . | . . . Damage Inflicted 1199 | 25 286 888 Guns 1091 | 25 255 811 Cannons . | . . . Explosions 108 | . 31 77 Melee . | . . . Ramming . | . . . Kinetic 722 | . . 722 Thermal 146 | . 31 115 Explosive . | . . . Electromagnetic 331 | 25 255 51 Impact . | . . . Slashing . | . . . Piercing . | . . . Highest Corruption . | . . . Average Corruption . | . . . Corruption Purged . | . . . Corruption Blocked . | . . . Overload Shots . | . . . Overflow Damage . | . . . Projectiles . | . . . Explosions . | . . . Melee . | . . . Knockbacks . | . . . Impact . | . . . Kinetic . | . . . Secondary . | . . . Self-Inflicted Damage 34 | . 34 . Shots 1 | . 1 . Rammed . | . . . Targets Rammed . | . . . Kicked . | . . . Crushed . | . . . Highest Temperature 87 | 36 42 87 Average Temperature 21 | 20 22 20 Received Heat Transfer 477 | . 90 387 Siege Activations . | . . . Robots Corrupted . | . . . Combat Hostiles . | . . . Parts Fried . | . . . Impact Corruptions . | . . . Robots Melted . | . . . Combat Hostiles . | . . . Parts Melted 1 | . . 1 Heat Transferred 335 | . 50 285 Parts Sabotaged . | . . . Parts Stolen . | . . . Parts Stripped . | . . . Power Chain Reactions 2 | . 1 1 Alert | -11 -10 -9 ------- Run | Yrd Mat Mat Peak Influence 270 | 5 155 270 Initial 3 | . 3 . Average 74 | 1 54 109 Maximum Alert Level 1 | . . 1 Low Security (%) 88 | 100 100 77 Level 1 11 | . . 22 Level 2 . | . . . Level 3 . | . . . Level 4 . | . . . Level 5 . | . . . High Security . | . . . Max Security . | . . . Squads Dispatched 4 | . 1 3 Investigation 1 | . . 1 Extermination . | . . . Reinforcement 3 | . 1 2 Assault . | . . . Garrison . | . . . Intercept . | . . . Searches Triggered . | . . . Construction Impeded . | . . . Haulers Reinforced . | . . . Active Scanning Responses . | . . . Cargo Convoy Interrupts . | . . . Stealth | -11 -10 -9 --------- Run | Yrd Mat Mat Distress Signals 3 | . 1 2 Communications Jammed . | . . . Distress Signals . | . . . Times Spotted 32 | . 11 21 Peak Tracking Total 5 | . 4 5 Tactical Retreats 5 | . . 5 Traps | -11 -10 -9 ------- Run | Yrd Mat Mat Traps Triggered 5 | . 4 1 Indirectly . | . . . Trap Hack Attempts . | . . . Triggered . | . . . Disarmed . | . . . Reprogrammed . | . . . Reused . | . . . Traps Extracted . | . . . Installed . | . . . Triggered . | . . . Machines | -11 -10 -9 ---------- Run | Yrd Mat Mat Machines Disabled 2 | . 2 . Max in Single Turn 1 | . 1 . Machines Repaired . | . . . Machines Dismantled . | . . . Machines Sabotaged . | . . . Overloaded Fab Kills . | . . . Hacking | -11 -10 -9 --------- Run | Yrd Mat Mat Machines Accessed 2 | . . 2 Terminals 1 | . . 1 Fabricators . | . . . Repair Stations . | . . . Recycling Units 1 | . . 1 Scanalyzers . | . . . Garrison Access . | . . . Total Hacks 5 | . . 5 Successful 3 | . . 3 Failed 2 | . . 2 Catastrophic . | . . . Database Lockouts . | . . . Manual . | . . . Terminals 3 | . . 3 Fabricators . | . . . Repair Stations . | . . . Recycling Units 2 | . . 2 Scanalyzers . | . . . Garrison Access . | . . . Terminal Hacks 1 | . . 1 Locate Traps 1 | . . 1 Fabricator Hacks . | . . . Repair Station Hacks . | . . . Recycling Unit Hacks 2 | . . 2 Report Inventory 1 | . . 1 Retrieve Components 1 | . . 1 Scanalyzer . | . . . Garrison Access Hacks . | . . . Unauthorized Hacks . | . . . Terminals . | . . . Fabricators . | . . . Repair Stations . | . . . Recycling Units . | . . . Scanalyzers . | . . . Garrison Access . | . . . Data Cores Recovered . | . . . Used . | . . . Hacking Detections 2 | . . 2 Full Trace Events 1 | . . 1 Feedback Events . | . . . Feedback Blocked . | . . . Robot Schematics Acquired . | . . . Robots Built . | . . . Authchips . | . . . Time . | . . . Total Robot Build Rating . | . . . Part Schematics Acquired . | . . . Parts Built . | . . . Authchips . | . . . Time . | . . . Total Part Build Rating . | . . . Parts Repaired . | . . . Time . | . . . Parts Recycled . | . . . Recycled Matter . | . . . Retrieved Matter . | . . . Retrieved Components 10 | . . 10 Parts Scanalyzed . | . . . Part Schematics Acquired . | . . . Parts Damaged . | . . . Bothacking | -11 -10 -9 ------------ Run | Yrd Mat Mat Used RIF Installer . | . . . Robots Hacked 9 | . 8 1 Non-combat 8 | . 7 1 Combat 1 | . 1 . Robot Hacks Applied 12 | . 9 3 parse_system 4 | . 4 . no_distress 7 | . 5 2 check_alert 1 | . . 1 Relay Couplers Released . | . . . Fabnet Peak Effective % . | . . . Robots Rewired . | . . . Allies Hacked . | . . . Hacks Repelled . | . . . Allies | -11 -10 -9 -------- Run | Yrd Mat Mat Total Allies . | . . . Largest Group . | . . . Highest-Rated Group . | . . . Highest-Rated Ally . | . . . Total Orders . | . . . Ally Attacks . | . . . Total Damage . | . . . Kills . | . . . Allies Corrupted . | . . . Allies Melted . | . . . Intel | -11 -10 -9 ------- Run | Yrd Mat Mat Robot Analysis Total . | . . . Derelict Logs Recovered . | . . . Drone Launches . | . . . Drone Recoveries . | . . . Exploration | -11 -10 -9 ------------- Run | Yrd Mat Mat Turns Passed 1125 | 139 437 549 Spaces Moved 593 | 72 257 264 Core 12 | 10 . 2 Treads 213 | 62 34 117 Legs 368 | . 223 145 Wheels . | . . . Hover . | . . . Flight . | . . . Fastest Speed 50 | 50 120 120 Average Speed 136 | 144 126 144 Slowest Speed 300 | 160 190 300 Overloaded Moves . | . . . Propulsion Burnouts . | . . . Robots Hopped . | . . . Cave-ins Triggered . | . . . Exploration Rate (%) 17 | 5 31 16 Regions Visited 2 Branch Regions . Pre-discovered Areas . | . . . Known Exits Taken . | . . . Unknown Exits Taken 2 | 1 1 . Scrap Searched . | . . . Spaces Dug . | . . . Terrain Destroyed 7 | . 4 3 Melee . | . . . Projectile . | . . . AOE 7 | . 4 3 Terrain Rammed . | . . . Walls Destroyed . | . . . Machines Disabled . | . . . Actions | -11 -10 -9 --------- Run | Yrd Mat Mat Total 784 | 103 336 345 Wait 31 | 15 11 5 Move 591 | 71 256 264 Hop . | . . . Pick Up 25 | 9 10 6 Fast Attach 7 | . . 7 Attach 17 | 6 6 5 Detach 1 | . 1 . Swap 8 | . 4 4 Drop 8 | . 6 2 Fire 73 | 2 25 46 Melee 23 | . 17 6 Ram . | . . . Kick . | . . . Crush . | . . . Escape Stasis . | . . . Rewire . | . . . Trap . | . . . Miscellaneous . | . . . Route ------- -11/Scrapyard -10/Materials -9/Materials History --------- Turn | Location | Event 14 | -11/Scrapyard | Discovered new exit (range 15) 140 | -11/Scrapyard | Entered Materials 304 | -10/Materials | Build established: Mutant 380 | -10/Materials | Discovered new exit (range 16) 577 | -10/Materials | Entered another Materials area 577 | -9/Materials | Evolved 2 slots: Propulsion x1, Utility x1 800 | -9/Materials | Lost 3 parts (2n1u) 1126 | -9/Materials | Self-destructed Last Messages --------------- unit. K-01 Serf cleans the Neutrino Reactor. K-01 Serf collects debris. R-06 Scavenger inserts Com. Wheel into recycling unit. K-01 Serf cleans the Neutrino Reactor. R-06 Scavenger inserts Visual Processing Unit into recycling unit. R-06 Scavenger inserts Com. Wheel into recycling unit. Destroyed Datajack. R-06 Scavenger collects Heat Sink. K-01 Serf cleans the Terminal. K-01 Serf destroyed. Hvy. Assault Rifle destroyed. K-01 Serf collects debris. R-06 Scavenger collects Wheel. K-01 Serf collects debris. R-06 Scavenger collects Sml. Matter Pod. Imp. Treads destroyed. Map ----- +----------------------------------------------------+ | ??????????????????# = #??????# # # | | ????????????####### #??????# # # | | ????????????# ###+####################+### + | | ????????????# # | | ????????????# # | | ????????????# """" # | | ????????????# ""R" #############+### # | | ????????????# "" " # ## # # | | ????????????# #"" ! ## ""# # | | ????????????# #"T ! ## ""# # | | ????????????# """ """ #"" ! ## T"# # | | ????????????# """ """ # % ! ## ""# # | | ????????????# """ """ + """ ## ""# # | | ????????????# % # """ ## # # | | ????????????# % % # """ % # # # | | ????????????############# ## % ## # | | ??????????????########### ^^############ #=% | | ??????????????# # #??????????# # ! | | ??????????????# + #??????????# # | | ??????????????# "T" # ################## # | | ??????????????# """ # ## #??????? ? | | ??????????????####+###### ## """ #??????????? | | ????# ######## ##### # """ #??????????? | | ????# g k # """ #??????????? | | ????# g T +!=* #??????????? | | ????# g r@ #![= #??????????? | | ????# ###+##########% # *= #??????????? | | ????##????? ??????????### ### "Y" #??????????? | | ??????????# ???????????# # """ #??????????? | | ??????????#????????????# ##########??????????? | | ???????????????????????# #???????????????????? | | ???????????????????????## ##???????????????????? | | ????????????????????????#####????????????????????? | | ?????????????????????????????????????????????????? | | ?????????????????????????????????????????????????? | | ??????????????????????????x??????????????????????? | | ?????????????????????????????????????????????????? | | ?????????????????????????????????????????????????? | | ?????????????????????????????????????????????????? | | ?????????????????????????????????????????????????? | | ?????????????????????????????????????????????????? | | ?????????????????????????????????????????????????? | | ?????????????????????????????????????????????????? | | ?????????????????????????????????????????????????? | | ?????????????????????????????????????????????????? | | ?????????????????????????????????????????????????? | | ?????????????????????????????????????????????????? | | ?????????????????????????????????????????????????? | | ?????????????????????????????????????????????????? | | ?????????????????????????????????????????????????? | +----------------------------------------------------+ Best States ------------- Heat Dissipation 28 Energy Generation 14 Energy Capacity 280 Matter Stores 300 Matter Capacity 300 Sight Range 18 Robot Scan Range 14 Terrain Scan Density 10 Armor Coverage 150 Power Shielding 33 Evasion (%) 55 Recoil Reduction 2 Item Schematics ----------------- None Robot Schematics ------------------ None Fabricated ------------ Nothing Alien Tech Used ----------------- None Achievements -------------- None Challenges ------------ None Game ------ Seed SmallNeutrinoWand Manual? 0 Play Time 00:26:18 Cumulative 3.2 hours Start 2024.08.28 @ 10:29:21 End 2024.08.28 @ 10:56:52 Sessions 1 Manual Loads 0 Difficulty Rogue Special Mode None Game No. 7 Rogue 7 Adventurer 0 Explorer 0 Win Type - Total 0 Types 0/0/0/0/0/0/0/0/0 Lore% 1 Gallery% 8 Achievement% 8 Wizard Run 0 Options --------- Layout 1 ASCII 1 Keyboard 0 Movement Mouse Keybinds 0 Fullscreen 1 Font 20/SmallcapsGlow Map View 25x17 Zoom Use 99% Tactical HUD 0 Map Filters NONE Filters NONE Steam 1 RUN: 02b64ba6-acae-4e92-bc7c-2b308a4a29d6